[Event "Julius Baer Generation Cup Prelims 2022"]
[Site "Online"]
[Date "2022.09.14"]
[Round "6.4"]
[White "Aronian, Levon"]
[Black "Erigaisi Arjun"]
[Result "0-1"]
[ECO "A28"]
[WhiteElo "2759"]
[BlackElo "2725"]
[Annotator "TA"]
[PlyCount "106"]
[EventDate "2022.09.12"]
[EventType "tourn"]
[EventCountry "NET"]
[SourceTitle "playchess.com"]
[Source "ChessBase"]
[SourceQuality "1"]
[TimeControl "900+10"]

{[%evp 9,106,4,2,0,12,-13,15,-8,20,8,26,0,0,0,0,-17,-21,-25,0,0,0,-5,1,-3,0,-14,-12,-22,-31,-33,-27,-78,-16,-41,-34,-46,-36,-37,-11,-61,-51,-48,-58,-50,-44,-53,-72,-150,-151,-205,-206,-403,-401,-561,-569,-390,-365,-590,-408,-389,-412,-618,-786,-786,-735,-779,-517,-506,-485,-786,-786,-779,-686,-29969,-29969,-4798,-689,-691,-673,-679,-676,-661,-660,-618,-594,-730,-658,-730,-729,-782,-788,-806,-797,-772,-742,-991,-950,-940,-557]} 1. c4 {[%emt 0:00:00]} Nf6 {[%emt 0:00:00]} 2. Nc3 {[%emt 0:00:04]} e5 {[%emt 0:00:02]} 3. Nf3 {[%emt 0:00:02]} Nc6 {[%emt 0:00:01]} 4. e4 {[%emt 0:00:01]} Bb4 {[%emt 0:00:03]} 5. d3 {[%emt 0:00:01]} d6 {[%emt 0:00:03]} 6. Be2 {[%emt 0:00:01] A28: English Opening: Four Knights Variation.} O-O {[%emt 0:01:22]} 7. O-O {[%emt 0:00:01]} h6 {[%emt 0:00:47] seems to push 7...Bc5 aside.} 8. Be3 {[%emt 0:03:02] The position is equal.} Bg4 {[%emt 0:00:36] [#]} 9. Na4 $146 {[%emt 0:00:26]} ({Predecessor:} 9. Ne1 Bxe2 10. Qxe2 Qd7 11. Nc2 Ba5 12. b4 Nxb4 13. Nxb4 Bxb4 14. Nd5 Nxd5 15. cxd5 {0-1 (36) Sekova,O (1000)-Sosovickova,M (1124) Liptovsky Mikulas 2017}) 9... Nd7 {[%emt 0:00:42]} 10. h3 {[%emt 0:01:10]} (10. a3 $5 {[%cal Ra3b4]} Bc5 11. b4 Bxe3 12. fxe3 $11) 10... Bxf3 {[%emt 0:00:02]} 11. Bxf3 {[%emt 0:00:00]} Bc5 {[%emt 0:00:26]} 12. Nxc5 {[%emt 0:00:03]} dxc5 {[%emt 0:00:51]} 13. g3 {[%emt 0:00:02]} Nd4 {[%emt 0:00:02]} 14. Bg2 {[%emt 0:00:05]} c6 {[%emt 0:00:23]} 15. f4 {[%emt 0:00:02]} exf4 {[%emt 0:00:42]} 16. gxf4 {[%emt 0:00:00]} f5 {[%emt 0:00:14]} 17. Kh1 {[%emt 0:00:30]} a5 {[%emt 0:00:24]} 18. b3 {[%emt 0:03:25]} Rf7 {[%emt 0:01:02]} 19. Rb1 {[%emt 0:01:23]} Nf8 {[%emt 0:00:51]} 20. Qh5 {[%emt 0:00:02]} (20. Bxd4 $11 {keeps the balance.} Qxd4 21. exf5) 20... g6 {[%emt 0:02:10]} ({Black should try} 20... a4 $17) 21. Qd1 {[%emt 0:00:03]} Nfe6 {[%emt 0:00:08]} 22. Rb2 {[%emt 0:00:23]} Kh7 {[%emt 0:00:18]} 23. Qe1 {[%emt 0:00:18]} Qd6 {[%emt 0:00:41]} 24. a4 {[%emt 0:02:37]} (24. h4 $11) 24... b6 {[%emt 0:01:25] Black is more active.} 25. Qg3 {[%emt 0:00:37]} Rg8 {[%emt 0:00:13]} 26. h4 {[%emt 0:00:26]} Rgg7 {[%emt 0:00:42][%cal Og6g5]} 27. Bh3 {[%emt 0:00:17]} Kg8 {[%emt 0:00:21][%cal Og6g5]} 28. Bc1 {[%emt 0:03:07] [#] Black keeps a firm grip on the game.} ({White should play} 28. Qh2) 28... g5 $1 $17 {[%emt 0:01:07] And now ...fxe4 would win.} 29. hxg5 {[%emt 0:00:58]} (29. exf5 $17 {keeps fighting.} gxf4 30. Qh2 Nxf5 31. Bxf5 Rxf5 32. Qh3) 29... hxg5 $19 {[%emt 0:00:01][%cal Bh6g5,Bg5g4,Bg4g3][%mdl 32] ...g4 is the strong threat.} 30. Rh2 $2 {[%emt 0:00:00]} (30. e5 Qe7 31. fxg5 Nxg5 32. e6 Ndxe6 33. Bxf5) 30... g4 {[%emt 0:01:00]} 31. Bg2 {[%emt 0:00:55]} Ne2 {[%emt 0:00:53] Pair of Knights!} 32. Qe3 {[%emt 0:00:01]} Nxc1 {[%emt 0:00:13] Chess con chili.} 33. Rxc1 {[%emt 0:00:26]} (33. exf5 {was the only chance.} Nd4 34. Qxc1) 33... Qxf4 {[%emt 0:00:38]} 34. Qxf4 {[%emt 0:00:02]} Nxf4 {[%emt 0:00:00]} 35. exf5 {[%emt 0:00:05]} (35. Rf1 $142 Ne2 36. Rxf5 Ng3+ 37. Kg1 Nxf5 38. exf5) 35... g3 {[%emt 0:00:02]} 36. Rf1 {[%emt 0:00:13]} gxh2 {[%emt 0:01:06]} 37. Rxf4 {[%emt 0:00:02][%mdl 4096] Endgame KRR-KRB} Rf6 {[%emt 0:00:14]} 38. Kxh2 {[%emt 0:00:06]} Rg5 {[%emt 0:00:04]} 39. Bh3 {[%emt 0:00:04]} (39. d4 $142 Rh6+ 40. Kg1) 39... Rh6 {[%emt 0:00:07]} 40. Rf3 {[%emt 0:00:27]} Kf7 {[%emt 0:00:06]} 41. Rg3 {[%emt 0:00:00]} Kf6 {[%emt 0:00:36]} 42. Re3 {[%emt 0:00:09]} Rxf5 {[%emt 0:00:04]} (42... Rgh5 $142 43. Re6+ Kg5) 43. Kg3 {[%emt 0:00:01]} Rg6+ {[%emt 0:00:11]} 44. Bg4 {[%emt 0:00:03]} Rf1 {[%emt 0:00:19] [#] Threatens to win with ...Rg1+.} 45. Re6+ {[%emt 0:00:03]} Kf7 {[%emt 0:00:01] ( -> ...Rxg4+)} 46. Re4 {[%emt 0:00:02]} Rd6 {[%emt 0:00:33]} 47. Bh5+ {[%emt 0:00:29]} Kf6 {[%emt 0:00:04]} 48. Be2 {[%emt 0:00:04]} Rb1 {[%emt 0:00:11]} 49. Rf4+ {[%emt 0:00:01]} Ke7 {[%emt 0:00:03]} 50. Rh4 {[%emt 0:00:03]} Rf6 {[%emt 0:00:12]} 51. Bf3 {[%emt 0:00:28]} Rxb3 {[%emt 0:00:04]} 52. Be4 {[%emt 0:00:01]} Kd6 {[%emt 0:00:09]} 53. Rh8 {[%emt 0:00:14]} Ke5 {[%emt 0:00:12] Weighted Error Value: White=0.51/Black=0.22 (precise)} 0-1

[Event "Julius Baer Generation Cup Prelims 2022"]
[Site "Online"]
[Date "2022.09.14"]
[Round "6.5"]
[White "Praggnanandhaa R"]
[Black "Keymer, Vincent"]
[Result "1-0"]
[ECO "C00"]
[WhiteElo "2676"]
[BlackElo "2693"]
[Annotator "TA"]
[PlyCount "183"]
[EventDate "2022.09.12"]
[EventType "tourn"]
[EventCountry "NET"]
[SourceTitle "playchess.com"]
[Source "ChessBase"]
[SourceQuality "1"]
[TimeControl "900+10"]

{[%evp 22,183,-33,-41,-37,-48,-28,-58,-56,-74,-69,-73,-44,-57,104,-51,-34,-54,-29,-45,-42,-37,-46,-42,-42,-51,-39,-45,-46,-43,-29,-45,-22,-22,-24,-25,-14,-20,-7,-14,0,0,0,0,0,-17,0,0,0,0,0,0,0,0,0,-24,0,0,0,-16,0,0,0,0,0,0,0,-22,0,0,20,13,12,15,15,14,12,1,40,0,0,0,0,-34,0,0,0,0,0,0,0,0,0,0,0,0,0,0,0,-26,-36,-17,-8,-8,-8,-8,-8,-8,-8,-8,0,0,0,0,0,0,0,0,0,0,117,18,12,0,0,0,0,0,0,0,0,0,0,0,0,0,0,0,31,31,114,114,190,190,190,190,183,175,197,31,31,31,31,0,392,359,29992,229,29986,29987,29987,29980,29998,29999]} 1. Nf3 {[%emt 0:00:00]} d5 {[%emt 0:00:00]} 2. g3 {[%emt 0:00:02]} c5 {[%emt 0:00:30]} 3. Bg2 {[%emt 0:00:04]} Nf6 {[%emt 0:00:01]} 4. O-O {[%emt 0:00:05]} e6 {[%emt 0:00:01]} 5. d3 {[%emt 0:00:48]} Be7 {[%emt 0:00:16]} 6. Nbd2 {[%emt 0:01:29]} Nc6 {[%emt 0:00:19]} 7. e4 {[%emt 0:00:02]} O-O {[%emt 0:02:37]} 8. e5 {[%emt 0:00:09]} Nd7 {[%emt 0:00:01]} 9. Re1 {[%emt 0:00:01]} Qc7 {[%emt 0:00:26]} 10. Qe2 {[%emt 0:00:03]} b5 {[%emt 0:00:01]} 11. Nf1 {[%emt 0:00:02]} Bb7 {[%emt 0:00:24]} 12. h4 {[%emt 0:00:20]} Rfc8 {[%emt 0:00:05]} 13. Bf4 {[%emt 0:00:18]} a5 {[%emt 0:00:10]} 14. h5 {[%emt 0:00:23]} h6 {[%emt 0:01:33]} 15. N1h2 {[%emt 0:00:05]} Qd8 {[%emt 0:00:04]} 16. Qd2 {[%emt 0:00:52]} Nf8 {[%emt 0:01:25]} 17. Ng4 {[%emt 0:04:07][%cal Of4h6]} Nh7 $2 {[%emt 0:00:34] [#]} (17... Nd4 $1 $15 {keeps the upper hand.}) 18. c3 $2 {[%emt 0:00:06]} ({Only move:} 18. Bxh6 $1 $16 {[%mdl 512]} gxh6 (18... Nd4 19. Bf4) 19. Nxh6+ Kg7 20. Qf4) 18... Bf8 {[%emt 0:00:39]} 19. Rec1 {[%emt 0:00:51]} b4 {[%emt 0:00:14]} 20. a4 {[%emt 0:02:00]} Rab8 {[%emt 0:00:42]} 21. d4 {[%emt 0:00:16]} bxc3 {[%emt 0:00:30]} 22. bxc3 {[%emt 0:00:04]} cxd4 {[%emt 0:00:10]} 23. cxd4 {[%emt 0:00:12]} Ba6 {[%emt 0:00:05]} 24. Bf1 {[%emt 0:01:01]} Bxf1 {[%emt 0:00:15]} 25. Kxf1 {[%emt 0:00:03]} Nb4 {[%emt 0:00:04]} 26. Kg2 {[%emt 0:00:40]} Qd7 {[%emt 0:00:35]} 27. Qd1 {[%emt 0:00:05]} Be7 {[%emt 0:00:39]} 28. Bd2 {[%emt 0:00:29]} Qd8 {[%emt 0:02:26]} 29. Rxc8 {[%emt 0:00:59]} (29. Bxh6 gxh6 30. Nxh6+ Kg7 $17) 29... Rxc8 {[%emt 0:00:04]} 30. Rc1 {[%emt 0:00:01]} Rc7 {[%emt 0:00:17]} 31. Bxb4 {[%emt 0:01:19]} axb4 {[%emt 0:00:30]} 32. Rxc7 {[%emt 0:00:30]} Qxc7 {[%emt 0:00:03]} 33. Nd2 {[%emt 0:00:01]} Nf8 {[%emt 0:00:41]} 34. Nb3 {[%emt 0:00:11]} Nd7 {[%emt 0:00:04]} 35. a5 {[%emt 0:00:19] Prevents Nb6.} Nb8 {[%emt 0:00:11]} 36. Ne3 {[%emt 0:00:08]} Qc3 {[%emt 0:01:23]} 37. Qb1 {[%emt 0:01:27]} Bg5 {[%emt 0:01:00]} 38. Nc2 {[%emt 0:00:19]} Na6 {[%emt 0:00:20]} (38... Bd8 $5 {[%cal Rb8c6]}) 39. Ne1 {[%emt 0:00:25]} Be7 {[%emt 0:00:43]} 40. Nf3 {[%emt 0:00:22]} Bd8 {[%emt 0:01:07]} 41. Qa2 {[%emt 0:00:07]} Qc6 {[%emt 0:00:07]} 42. Ne1 {[%emt 0:00:22]} Qc3 {[%emt 0:00:21]} 43. Nf3 {[%emt 0:00:39]} Qc6 {[%emt 0:00:02]} 44. Nfd2 {[%emt 0:00:13]} Kf8 {[%emt 0:00:15]} 45. Qb1 {[%emt 0:00:06] aiming for Qh7.} Bg5 {[%emt 0:00:33]} 46. f4 {[%emt 0:00:19]} Be7 $1 {[%emt 0:00:10]} 47. Qh7 {[%emt 0:00:12][%cal Rh7h8]} f5 {[%emt 0:00:01]} 48. exf6 {[%emt 0:00:02]} Bxf6 {[%emt 0:00:03]} 49. Qd3 {[%emt 0:00:01]} Ke7 {[%emt 0:00:22]} 50. Kh2 {[%emt 0:00:12]} Kd8 {[%emt 0:00:04]} 51. Qe3 {[%emt 0:00:17]} Kc8 {[%emt 0:00:16]} 52. Nf3 {[%emt 0:00:27]} Kb7 {[%emt 0:00:02]} (52... Qc2+ {is more complex.} 53. Kg1 Nc7 54. Ne5 Be7) 53. Nfd2 {[%emt 0:00:10]} Ka7 {[%emt 0:00:09]} 54. Kg2 {[%emt 0:00:04]} Ka8 {[%emt 0:00:17]} 55. Kf1 {[%emt 0:00:16]} Nc7 {[%emt 0:00:15]} 56. Nc5 {[%emt 0:00:12]} Qb5+ {[%emt 0:00:01]} 57. Kg2 {[%emt 0:00:10]} Qxa5 {[%emt 0:00:09]} 58. Nxe6 {[%emt 0:00:01]} Nxe6 {[%emt 0:00:16]} 59. Qxe6 {[%emt 0:00:01]} Bxd4 $11 {[%emt 0:00:12][%mdl 4096] Endgame KQB-KQN} 60. Kh3 {[%emt 0:00:12] Hoping for Nb3.} Qb5 {[%emt 0:00:11]} 61. Kg4 $1 {[%emt 0:00:25]} b3 {[%emt 0:00:10]} 62. Qc8+ {[%emt 0:00:05]} Ka7 {[%emt 0:00:01]} 63. Qc7+ {[%emt 0:00:03]} Ka6 {[%emt 0:00:04] Strongly threatening ...Qe2+.} 64. Qd6+ $1 {[%emt 0:00:10]} (64. Qc8+ $2 Ka5 65. Nf3 Bf6 $19) 64... Bb6 {[%emt 0:00:17]} (64... Kb7 $5 65. Qe7+ $8 Kc6 66. Qe6+ Kc5 67. Qe7+ Kc6 68. Qe6+ Kb7 69. Qe7+ Kc8 70. Qf8+ Kd7 71. Qf7+ Kd8 72. Qf8+ Kd7 73. Qf7+ Kd8 74. Qf8+ Kd7 $11) 65. Qa3+ {[%emt 0:00:05]} Kb7 {[%emt 0:00:01]} 66. Qxb3 {[%emt 0:00:13]} Qe2+ {[%emt 0:00:15]} 67. Nf3 {[%emt 0:00:02]} Qe6+ {[%emt 0:00:04]} 68. Kh4 {[%emt 0:00:03]} Kc8 {[%emt 0:00:21]} 69. Qc3+ {[%emt 0:00:15]} Bc7 {[%emt 0:00:09]} 70. Nd4 {[%emt 0:00:12]} Qe7+ {[%emt 0:00:19]} (70... Qd7 $11 {remains equal.}) 71. Kh3 {[%emt 0:00:11]} (71. Kg4 $16) 71... Qe4 {[%emt 0:00:01]} 72. Nb5 {[%emt 0:00:26][%csl Gb5][%cal Rc3c7]} Qc4 {[%emt 0:00:08] And now ...Qf1+ would win.} 73. Qb2 {[%emt 0:00:09]} Qf1+ {[%emt 0:00:02]} 74. Kh2 {[%emt 0:00:01]} Bb6 {[%emt 0:00:24]} 75. Nd6+ {[%emt 0:00:26]} Kc7 {[%emt 0:00:04]} 76. Ne8+ {[%emt 0:00:08]} Kc6 {[%emt 0:00:06] ( -> ...Bg1+)} 77. Qc3+ {[%emt 0:00:14]} Qc4 {[%emt 0:00:24]} ({Don't do} 77... Kb5 78. Nd6+ Ka6 79. Qa3+ (79. Qc6 Qe2+ 80. Kh3 Qxh5+ 81. Kg2 Qe2+ 82. Kh3 Qh5+ 83. Kg2 Qe2+ 84. Kh3 Qh5+ $11) 79... Ba5 80. Qb2 $16) 78. Qf3 {[%emt 0:00:10]} Qc2+ {[%emt 0:00:07]} 79. Kh3 {[%emt 0:00:04]} Bd4 {[%emt 0:00:14]} 80. Qg4 {[%emt 0:00:01] Inhibits Qf5. Qc8+ is the strong threat.} Kb5 {[%emt 0:00:12]} (80... Qc3 $14) 81. Qd7+ $16 {[%emt 0:00:12]} (81. Nxg7 $6 Qe4 82. Qd7+ Ka5 $11) 81... Kc4 {[%emt 0:00:05]} (81... Kb4 $16 {was worth a try.}) 82. Nd6+ $18 {[%emt 0:00:08]} ({Don't play} 82. Nxg7 $6 Qe2 $16) 82... Kd3 {[%emt 0:00:17]} 83. Qf5+ {[%emt 0:00:05]} Kd2 {[%emt 0:00:02] Threatens to win with ...Qxf5+.} 84. Qxd5 {[%emt 0:00:03]} Qd3 {[%emt 0:00:08] [#]} 85. Nf5 $2 {[%emt 0:00:29]} (85. Nc4+ $1 $18 Kc3 86. Ne5) 85... Bf6 $1 $14 {[%emt 0:00:16]} 86. Qd6 {[%emt 0:00:14]} Ke2 {[%emt 0:00:10]} 87. Qe6+ {[%emt 0:00:13]} Kf1 $2 {[%emt 0:00:10][%mdl 8192]} (87... Kf2 $11 {and Black is okay.}) 88. Ne3+ {[%emt 0:00:08]} Kg1 $2 {[%emt 0:00:13] [#]} (88... Ke2 $18) 89. Qc6 $2 {[%emt 0:00:09]} (89. Qa2 $1 {mates} Qf1+ 90. Nxf1 Kxf1 91. Kg4 g5 92. hxg6 Bb2 93. Qxb2 Ke1 94. Qc2 h5+ 95. Kf3 Kf1 96. Qf2#) 89... Qe2 $2 {[%emt 0:00:10]} (89... Kf2 $18) 90. Qc1+ {[%emt 0:00:01]} Kf2 {[%emt 0:00:01]} 91. Ng4+ {[%emt 0:00:00]} Kf3 {[%emt 0:00:08]} 92. Qh1+ {[%emt 0:00:02]} 1-0

[Event "Julius Baer Generation Cup Prelims 2022"]
[Site "Online"]
[Date "2022.09.14"]
[Round "6.7"]
[White "Ivanchuk, Vasyl"]
[Black "Yoo, Christopher Woojin"]
[Result "0-1"]
[ECO "C83"]
[WhiteElo "2678"]
[BlackElo "2563"]
[Annotator "TA"]
[PlyCount "54"]
[EventDate "2022.09.12"]
[EventType "tourn"]
[EventCountry "NET"]
[SourceTitle "playchess.com"]
[Source "ChessBase"]
[SourceQuality "1"]
[TimeControl "900+10"]

{[%evp 19,54,20,12,17,22,15,33,9,8,0,18,0,0,-16,-12,-131,-134,-121,-131,-122,-128,-121,-121,-133,-123,-131,-137,-135,-122,-114,-112,-153,-104,-116,-106,-101,-55]} 1. e4 {[%emt 0:00:00]} e5 {[%emt 0:00:00]} 2. Nf3 {[%emt 0:00:12]} Nc6 {[%emt 0:00:02]} 3. Bb5 {[%emt 0:00:01]} a6 {[%emt 0:00:02]} 4. Ba4 {[%emt 0:00:02]} Nf6 {[%emt 0:00:02]} 5. O-O {[%emt 0:00:01]} Nxe4 {[%emt 0:00:02]} 6. d4 {[%emt 0:00:08]} b5 {[%emt 0:00:02]} 7. Bb3 {[%emt 0:00:01]} d5 {[%emt 0:00:00]} 8. dxe5 {[%emt 0:00:01]} Be6 {[%emt 0:00:02]} 9. Be3 {[%emt 0:00:37]} Be7 {[%emt 0:00:07]} 10. c3 {[%emt 0:00:01]} Qd7 {[%emt 0:00:14] BESTDEEP} 11. Nbd2 {[%emt 0:00:12] C83: Open Ruy Lopez: 9 c3 Be7.} Nxd2 {[%emt 0:00:05] BESTDEEP} 12. Qxd2 {[%emt 0:03:59] RECAPT 7 (Be3xd2) (=4)} Na5 {[%emt 0:00:07] CPLX 2.3 18 (0-0) (=6)} 13. Bg5 {[%emt 0:00:27] CPLX 2.3 24 (Rf1-d1) (=10). White is slightly better.} (13. Rfd1 $5 {[%cal Rb3d5]}) 13... O-O {[%emt 0:00:17] BESTDEEP} 14. Rad1 {[%emt 0:02:17][%cal Rb3d5] CPLX 2.5 8 (h2-h3) (=10)} Rad8 {[%emt 0:02:49] [#] CPLX 2.6 18 (Na5-c4) (=7)} 15. Bc2 $146 {[%emt 0:02:15][%cal Og5f6] CPLX 2.5 18 (Bg5xe7) (=11)} ({Predecessor:} 15. Bxe7 Nxb3 16. Qg5 Na5 17. Bf6 {1-0 (17) De Neef,J-Steinbrueck,W corr 1940}) 15... Bg4 {[%emt 0:01:43] BESTDEEP} 16. Qf4 {[%emt 0:03:12] [#] And now Bxe7 would win. CPLX 3.1 16 (Rf1-e1) (=12)} f6 $1 {[%emt 0:03:00] DEEPSTRONG} 17. e6 {[%emt 0:02:45] MISS-e5xf6 119 (e5xf6) (=27)} (17. exf6 $11 Bxf6 18. Be4) 17... Bxe6 $17 {[%emt 0:01:07] DEEPSTRONG=>BLUNDERREACT} ({Not} 17... Qxe6 18. Rfe1 fxg5 19. Rxe6 Rxf4 20. Rxe7 $15) 18. Qh4 {[%emt 0:00:24] CPLX 3.2} Bf5 {[%emt 0:00:21] EASY} 19. Bxf5 {[%emt 0:00:02] EASY} Qxf5 {[%emt 0:00:00] RECAPT} 20. Bc1 {[%emt 0:00:01] BESTDEEP} c5 {[%emt 0:00:24] Inhibits Nd4. BESTDEEP} 21. Rfe1 {[%emt 0:00:01] CPLX 2.7 12 (Qh4-f4) (=19)} Nc6 {[%emt 0:00:02] BESTDEEP} 22. h3 {[%emt 0:00:16] BESTDEEP} Rd7 {[%emt 0:00:39] BESTDEEP} 23. Qg4 {[%emt 0:00:17] CPLX 2.7 0 (Qh4-g3) (=16)} Qxg4 {[%emt 0:00:07] EASY} 24. hxg4 {[%emt 0:00:01] RECAPT} Rfd8 {[%emt 0:01:55] CPLX 2.0 2 (Kg8-f7) (=3)} 25. g5 {[%emt 0:00:05] CPLX 2.0 41 (Kg1-f1) (=16)} Kf7 {[%emt 0:00:12] CPLX 2.1 49 (d5-d4) (=5)} ({Black should play} 25... d4 26. gxf6 Bxf6) 26. gxf6 {[%emt 0:00:22] CPLX 2.2 12 (Kg1-f1) (=16)} gxf6 {[%emt 0:00:20] RECAPT} 27. Kf1 {[%emt 0:02:00] BESTDEEP} a5 {[%emt 0:01:09] Weighted Error Value: White=0.17 (very precise) /Black=0.04 (flawless)} (27... d4 $17 28. cxd4 Nxd4 29. Nxd4 Rxd4 30. Rxd4 Rxd4) 0-1

[Event "Julius Baer Generation Cup Prelims 2022"]
[Site "Online"]
[Date "2022.09.14"]
[Round "6.8"]
[White "Duda, Jan-Krzysztof"]
[Black "Gelfand, Boris"]
[Result "1-0"]
[ECO "B30"]
[WhiteElo "2731"]
[BlackElo "2668"]
[Annotator "TA"]
[PlyCount "121"]
[EventDate "2022.09.12"]
[EventType "tourn"]
[EventCountry "NET"]
[SourceTitle "playchess.com"]
[Source "ChessBase"]
[SourceQuality "1"]
[TimeControl "900+10"]

{[%evp 15,121,0,0,7,9,0,0,0,9,6,27,0,0,-6,7,0,24,0,30,4,53,6,54,62,55,67,68,53,68,68,68,68,72,72,70,64,82,75,81,68,66,0,0,0,0,0,0,0,0,0,0,0,0,0,0,0,0,0,0,0,0,0,0,-5,0,0,50,39,49,50,45,0,0,0,42,0,0,0,0,0,0,0,0,0,8,8,24,22,57,56,371,319,29966,29954,29980,29980,29987,29988,29988,29989,29989,29990,29995,29996,29996,29996,29996,29997]} 1. e4 {[%emt 0:00:00] Kritz,Leonid} c5 {[%emt 0:00:00]} 2. Nf3 {[%emt 0:00:01]} Nc6 {[%emt 0:00:02]} 3. Bb5 {[%emt 0:00:01]} e6 {[%emt 0:00:01]} 4. O-O {[%emt 0:00:15]} Nge7 {[%emt 0:00:02]} 5. c3 {[%emt 0:00:04]} a6 {[%emt 0:00:26]} 6. Ba4 {[%emt 0:00:01]} b5 {[%emt 0:00:00]} 7. Bc2 {[%emt 0:00:01]} Bb7 {[%emt 0:00:01]} 8. a4 {[%emt 0:00:22]} Ng6 {[%emt 0:01:17]} 9. Re1 {[%emt 0:00:49] B30: Sicilian: 2...Nc6 3 Bb5, lines without ...g6.} c4 {[%emt 0:00:29]} 10. b4 {[%emt 0:01:17] [#]} cxb3 $146 {[%emt 0:01:13]} ({Predecessor:} 10... Nce5 11. axb5 axb5 12. Rxa8 Bxa8 13. Na3 Bc6 14. Nd4 Nf4 15. Nxc6 dxc6 16. d4 cxd3 17. Bxf4 {½-½ (45) Svidler,P (2747)-Gelfand,B (2751) Tashkent 2012 CBM 152 [Kritz,Leonid]}) 11. Bxb3 {[%emt 0:00:03] The position is equal.} Be7 {[%emt 0:00:02]} 12. d4 {[%emt 0:00:35]} b4 {[%emt 0:01:48]} 13. g3 {[%emt 0:02:54]} (13. d5 $5 {[%cal Rd5c6]} Na5 14. cxb4 Bxb4 15. Bd2 Bxd2 16. Nbxd2 $14) 13... Na5 {[%emt 0:02:17]} 14. Bc2 {[%emt 0:00:33]} bxc3 {[%emt 0:00:58]} 15. h4 {[%emt 0:00:02][%cal Bh2h4,Bh4h5][%mdl 32]} h6 {[%emt 0:02:04]} 16. d5 {[%emt 0:00:58]} Bc5 {[%emt 0:02:00]} (16... Rc8 $5 {[%cal Ra5c4]}) 17. h5 {[%emt 0:03:22]} Ne7 {[%emt 0:00:25]} (17... Qb8 $11 18. Be3 Bxe3 19. Rxe3 Ne5) 18. Be3 {[%emt 0:00:52]} (18. Nxc3 $14 Rc8 19. Rb1) 18... Qc7 {[%emt 0:01:22]} (18... Bxe3 $11 19. Rxe3 O-O) 19. Bxc5 $1 $14 {[%emt 0:01:05]} (19. Nxc3 Rc8 $11) 19... Qxc5 {[%emt 0:00:02]} 20. Ra3 {[%emt 0:00:00]} O-O {[%emt 0:00:15]} 21. Rxc3 {[%emt 0:00:03]} Qb4 {[%emt 0:00:09][%cal Re6d5]} 22. d6 {[%emt 0:01:16] aiming for Qd3.} Nec6 {[%emt 0:00:28]} 23. e5 {[%emt 0:00:04] Threatens to win with Qd3.} f5 {[%emt 0:00:07]} 24. exf6 $1 {[%emt 0:01:01]} Rxf6 {[%emt 0:00:04]} 25. Qd3 {[%emt 0:00:03]} Rf5 {[%emt 0:00:14] [#]} 26. Nbd2 $1 {[%emt 0:01:50] Re4 is the strong threat.} Qb6 {[%emt 0:01:16]} 27. Rb1 {[%emt 0:00:54] Active counter play!} Nb4 $1 {[%emt 0:00:13]} 28. Qd4 {[%emt 0:00:10]} (28. g4 $14 Nxd3 29. Rxb6) 28... Qxd4 $11 {[%emt 0:00:11]} 29. Nxd4 {[%emt 0:00:00] The board is on fire.} Rxh5 {[%emt 0:00:01][%csl Gb7][%cal Rh5h1]} 30. Be4 {[%emt 0:00:18] Prevents Rh1+.} Bxe4 {[%emt 0:00:19]} 31. Nxe4 {[%emt 0:00:00]} Nac6 {[%emt 0:00:14]} 32. Nxc6 {[%emt 0:00:10]} Nxc6 {[%emt 0:00:01]} 33. Rb7 {[%emt 0:00:05]} Rd8 {[%emt 0:00:08]} 34. Rc5 {[%emt 0:00:39]} Rd5 {[%emt 0:01:12]} 35. Rxd5 {[%emt 0:00:07]} exd5 {[%emt 0:00:02][%mdl 4096] Endgame KRN-KRN} 36. Nc5 {[%emt 0:00:00][%csl LRa6,LRd7]} Kf7 {[%emt 0:00:15]} 37. f4 {[%emt 0:00:11]} g5 {[%emt 0:00:35]} 38. Kf2 {[%emt 0:00:37]} gxf4 {[%emt 0:00:02]} 39. gxf4 {[%emt 0:00:00]} a5 {[%emt 0:00:11]} 40. Rc7 {[%emt 0:00:09]} (40. Nxd7 Ke6 41. Nc5+ Kxd6 $17) (40. Rxd7+ $2 Rxd7 41. Nxd7 Ke6 42. Nc5+ Kxd6 $19) 40... Nd4 {[%emt 0:00:11]} ({Black should try} 40... Nb8 $11) 41. Nb7 $14 {[%emt 0:00:13][%mdl 64] Deflection} (41. Nxd7 Ke6 42. Ne5 Rxd6 $11) (41. Rxd7+ Rxd7 42. Nxd7 Ke6 $11) 41... Rb8 {[%emt 0:00:29]} 42. Rxd7+ {[%emt 0:00:04]} Kf6 {[%emt 0:00:04]} 43. Kg2 {[%emt 0:00:55]} (43. Ke3 $5 {[%cal Re3d4]} Ne6 44. Nxa5 $14) 43... Ne6 {[%emt 0:00:32]} 44. Kf3 {[%emt 0:00:12]} Nd4+ {[%emt 0:00:05]} 45. Kg4 {[%emt 0:00:11]} Rg8+ {[%emt 0:00:06]} 46. Kh3 {[%emt 0:00:01]} Ne6 {[%emt 0:00:17]} 47. Rh7 {[%emt 0:00:09]} Nxf4+ {[%emt 0:00:04]} 48. Kh2 $1 {[%emt 0:00:04]} ({Avoid the trap} 48. Kh4 $2 h5 49. Rxh5 Nxh5 50. Kxh5 d4 $19) 48... Ne6 {[%emt 0:00:09]} 49. Rxh6+ {[%emt 0:00:10]} Ke5 {[%emt 0:00:01]} 50. d7 {[%emt 0:00:05]} d4 {[%emt 0:00:27]} 51. Rh5+ {[%emt 0:00:24]} Ke4 {[%emt 0:00:18]} 52. Nd6+ {[%emt 0:00:06]} ({Much weaker is} 52. Rxa5 d3 53. Nd6+ Kd4 54. Nf5+ Ke4 55. Nd6+ Kd4 56. Nf5+ Ke4 57. Nd6+ $11) 52... Kf3 $2 {[%emt 0:00:07][%mdl 8192] [#] Black cannot hold the game after this.} (52... Kd3 $1 $14) 53. Rf5+ $1 $18 {[%emt 0:00:17]} Ke2 $2 {[%emt 0:00:07]} (53... Kg4 $18 54. Re5 Rd8 55. Rxe6 Rxd7) 54. Re5+ {[%emt 0:00:06] White mates.} Kf3 {[%emt 0:00:21]} 55. Rxe6 {[%emt 0:00:07] KRN-KR} d3 {[%emt 0:00:02]} 56. Rf6+ {[%emt 0:00:09]} Ke2 {[%emt 0:00:06]} 57. Ne8 {[%emt 0:00:03]} d2 {[%emt 0:00:23]} 58. d8=Q {[%emt 0:00:07]} d1=Q {[%emt 0:00:01]} 59. Re6+ {[%emt 0:00:07]} Kf2 {[%emt 0:00:02]} 60. Qf6+ {[%emt 0:00:02]} (60. Qxd1 $2 {leads to mate.} Rh8+) 60... Qf3 {[%emt 0:00:12]} 61. Qb2+ {[%emt 0:00:03] Weighted Error Value: White=0.06 (flawless) /Black=0.30} 1-0